Cogmind - Beta 15 @@@ ROGUE MODE // 2025.07.12 @ 14:35:39 Player: beans Result: Destroyed by Shrapnel Trap Performance ------------- Evolutions (0) 0 Regions Visited (3) 600 Robots Destroyed (18) 90 Value Destroyed (394) 394 Prototype IDs (1) 20 Alien Tech Used (0) 0 Bonus (0) 0 TOTAL SCORE: 1104 Bonus ------- None Cogmind --------- Core Integrity 0/250 Matter 300/300 Energy 124/125 System Corruption 0% Temperature Cool (0) Movement Core (200) Ox3 Location -10/Subcaves Parts ------- > --- POWER (1) -------- Light Ion Engine > --- PROPULSION (2) --- (None) > --- UTILITY (2) ------ Experimental Sensor Array Makeshift Light Armor Plating > --- WEAPON (2) ------- Subdweller Laser > --- INVENTORY (5) ---- Light Assault Rifle Peak State ------------ > --- POWER ------------ Light Ion Engine > --- PROPULSION ------- (None) > --- UTILITY ---------- Experimental Sensor Array Makeshift Light Armor Plating > --- WEAPON ----------- Subdweller Laser > --- INVENTORY -------- Light Assault Rifle [Rating: 16] Favorites ----------- Power Subdweller Power Source Engine Subdweller Power Source Propulsion Light Treads Treads Light Treads Utility Experimental Sensor Array Device Experimental Sensor Array Protection Makeshift Light Armor Plating Weapon Light Assault Rifle Energy Gun EM Pulse Gun Ballistic Gun Light Assault Rifle Build | -11 -10 -10 -10 ------- Run | Yrd Mat Min Sub Slots Evolved . | . . . . Power . | . . . . Propulsion . | . . . . Utility . | . . . . Weapon . | . . . . Parts Attached 11 | 4 . 1 6 Power 3 | 1 . . 2 Engine 3 | 1 . . 2 Core . | . . . . Reactor . | . . . . Propulsion 2 | 2 . . . Treads 2 | 2 . . . Leg . | . . . . Wheel . | . . . . Hover . | . . . . Flight . | . . . . Utility 2 | . . 1 1 Device 1 | . . 1 . Storage . | . . . . Processor . | . . . . Hackware . | . . . . Protection 1 | . . . 1 Artifact . | . . . . Weapon 4 | 1 . . 3 Energy Gun 2 | 1 . . 1 Energy Cannon . | . . . . Ballistic Gun 2 | . . . 2 Ballistic Cannon . | . . . . Launcher . | . . . . Special Weapon . | . . . . Impact Weapon . | . . . . Slashing Weapon . | . . . . Piercing Weapon . | . . . . Special Melee Weapon . | . . . . Unidentified Prototypes 1 | . . 1 . Parts Lost 5 | . . . 5 Power 1 | . . . 1 Propulsion 2 | . . . 2 Utility . | . . . . Weapon 2 | . . . 2 Highest Loss Streak 4 | . . . 4 To Critical Strikes . | . . . . Average Backups . | . . 1 . Power . | . . . . Propulsion . | . . . . Utility . | . . . . Weapon . | . . 1 . Tool/Special . | . . . . Unused Backups 1 | . . . 1 Power . | . . . . Propulsion . | . . . . Utility . | . . . . Weapon 1 | . . . 1 Tool/Special . | . . . . Average Slot Usage (%) 64 | . 57 61 65 Engine 13 | . 14 14 13 Treads 14 | . 28 28 11 Device 11 | . . 4 14 Protection 1 | . . . 2 Energy Gun 5 | . 14 14 3 Ballistic Gun 16 | . . . 20 Peak Build Rating 16 | 4 4 13 16 Average Rating 12 | 2 4 7 14 On Entrance 5 | . 4 4 13 Naked Turns . | . . . . Heaviest Build 12 | 7 7 8 12 Greatest Support 40 | 40 40 40 40 Greatest Overweight (x) 3 | 2 . . 3 Average Overweight (x) . | . . . . Largest Inventory Capacity 5 | 5 5 5 5 Average Capacity 5 | 5 5 5 5 Most Carried 3 | 2 . 3 2 Average Carried . | . . 1 . Final Capacity 5 | 5 5 5 5 Final Carried 2 | . . 2 1 Class Distribution -------------------- 100% | Mutant Dominant Class ---------------- Mutant | -10/Materials Mutant | -10/Mines Mutant | -10/Subcaves Resources | -11 -10 -10 -10 ----------- Run | Yrd Mat Min Sub Matter Collected 327 | 145 95 . 87 Remotely . | . . . . Salvage Created 446 | . 270 68 108 Parts 41 | . 22 8 11 Haulers Intercepted . | . . . . Recyclers Shooed . | . . . . Parts Field Recycled . | . . . . Retrieved Matter . | . . . . Parts Self-Destructed 5 | . . . 5 Prevented . | . . . . Kills | -11 -10 -10 -10 ------- Run | Yrd Mat Min Sub Combat Hostiles Destroyed 12 | . 6 3 3 Guns 11 | . 5 3 3 AOE 1 | . 1 . . Classes Destroyed 7 | . 5 1 1 Worker 1 | . . 1 . Builder 2 | . 2 . . Recycler 1 | . 1 . . Watcher 2 | . 2 . . Swarmer 7 | . 3 3 1 Grunt 3 | . 3 . . Subdweller 2 | . . . 2 Best Kill Streak 9 | . 9 4 2 Combat Bots Only 5 | . 5 3 2 Max Kills in Single Turn 5 | . 5 1 1 Gunslinging . | . . . . Exploded 1 | . 1 . . Melee . | . . . . Uniques/NPCs Destroyed . | . . . . Combat | -11 -10 -10 -10 -------- Run | Yrd Mat Min Sub Hostile Shots Fired 68 | . 23 11 34 Missed 13 | . 6 4 3 Hits 55 | . 17 7 31 Projectile 55 | . 17 7 31 Damage Taken 901 | . 142 59 700 Core 290 | . 30 . 260 Absorbed by Shields . | . . . . Core Remaining (%) 100 | 100 . . . Volleys Fired 68 | . 24 10 34 Largest 2 | . 1 1 2 Hottest 60 | . 40 40 60 Shots Fired 85 | . 24 10 51 Gun 85 | . 24 10 51 Cannon . | . . . . Launcher . | . . . . Special . | . . . . Kinetic 36 | . . . 36 Thermal 10 | . . . 10 Explosive . | . . . . Electromagnetic 39 | . 24 10 5 Robot Hit Streak 25 | . 6 2 25 Robot Miss Streak 4 | . 4 2 2 Penetration Max . | . . . . Secondary Targets . | . . . . Shots Hit Robots 55 | . 11 6 38 Core Hits 24 | . 11 4 9 Critical Kills . | . . . . Critical Parts Destroyed . | . . . . Critical Strikes 1 | . 1 . . Corrupt 1 | . 1 . . Melee Attacks . | . . . . Impact . | . . . . Slashing . | . . . . Piercing . | . . . . Sneak Attacks . | . . . . Combat Hostiles . | . . . . Follow-up Attacks . | . . . . Damage Inflicted 1140 | . 736 73 331 Guns 552 | . 148 73 331 Cannons . | . . . . Explosions 588 | . 588 . . Melee . | . . . . Ramming . | . . . . Kinetic 276 | . . . 276 Thermal 607 | . 588 . 19 Explosive . | . . . . Electromagnetic 257 | . 148 73 36 Impact . | . . . . Slashing . | . . . . Piercing . | . . . . Highest Corruption . | . . . . Average Corruption . | . . . . Corruption Purged . | . . . . Corruption Blocked . | . . . . Overload Shots . | . . . . Overflow Damage 89 | . 89 . . Projectiles . | . . . . Explosions 89 | . 89 . . Melee . | . . . . Knockbacks . | . . . . Impact . | . . . . Kinetic . | . . . . Secondary . | . . . . Self-Inflicted Damage . | . . . . Shots . | . . . . Rammed . | . . . . Targets Rammed . | . . . . Kicked . | . . . . Crushed . | . . . . Highest Temperature 12 | . 12 . . Average Temperature 9 | . 9 . . Received Heat Transfer 207 | . 27 . 180 Siege Activations . | . . . . Martial Activations . | . . . . Shielding Activations . | . . . . Robots Disrupted . | . . . . Combat Hostiles . | . . . . Robots Corrupted . | . . . . Combat Hostiles . | . . . . Parts Fried . | . . . . Impact Corruptions . | . . . . Robots Melted . | . . . . Combat Hostiles . | . . . . Parts Melted . | . . . . Heat Transferred 375 | . 350 . 25 Parts Sabotaged . | . . . . Parts Stolen . | . . . . Parts Stripped . | . . . . Power Chain Reactions . | . . . . Alert | -11 -10 -10 -10 ------- Run | Yrd Mat Min Sub Maximum Alert Level 1 | . 1 . . Low Security (%) 70 | 100 41 100 . Level 1 29 | . 58 . . Level 2 . | . . . . Level 3 . | . . . . Level 4 . | . . . . Level 5 . | . . . . High Security . | . . . . Max Security . | . . . . Peak Influence 305 | . 305 135 . Initial 95 | . . 95 . Average 123 | . 167 97 . Influence Increases 452 | . 347 75 30 Destroy 0b10 Robot/C 200 | . 120 60 20 Destroy 0b10 Robot/NC 30 | . 25 5 . Destroy Leader 44 | . 24 10 10 Successful Hack 2 | . 2 . . Disable Machine 120 | . 120 . . Destroy Structure 41 | . 41 . . Lose Combat Pursuer 15 | . 15 . . Influence Decreases 452 | . 102 250 100 Entered New Map 187 | . . 150 37 Time Decay 265 | . 102 100 63 Squads Dispatched 1 | . 1 . . Investigation 1 | . 1 . . Extermination . | . . . . Reinforcement . | . . . . Assault . | . . . . Garrison . | . . . . Intercept . | . . . . Searches Triggered . | . . . . Construction Impeded . | . . . . Haulers Reinforced . | . . . . Active Scanning Responses . | . . . . Cargo Convoy Interrupts . | . . . . Stealth | -11 -10 -10 -10 --------- Run | Yrd Mat Min Sub Distress Signals 2 | . 2 . . Communications Jammed . | . . . . Distress Signals . | . . . . Times Spotted 20 | . 10 3 7 Peak Tracking Total 5 | . 5 3 2 Tactical Retreats 3 | . 1 . 2 Traps | -11 -10 -10 -10 ------- Run | Yrd Mat Min Sub Traps Triggered 2 | . 1 . 1 Indirectly . | . . . . Trap Hack Attempts . | . . . . Triggered . | . . . . Disarmed . | . . . . Reprogrammed . | . . . . Reused . | . . . . Traps Extracted . | . . . . Installed . | . . . . Triggered . | . . . . Machines | -11 -10 -10 -10 ---------- Run | Yrd Mat Min Sub Machines Disabled 8 | . 8 . . Max in Single Turn 8 | . 8 . . Machines Repaired . | . . . . Machines Dismantled . | . . . . Machines Sabotaged . | . . . . Overloaded Fab Kills . | . . . . Hacking | -11 -10 -10 -10 --------- Run | Yrd Mat Min Sub Machines Accessed 3 | . 1 . 2 Terminals 1 | . 1 . . Fabricators . | . . . . Repair Stations . | . . . . Recycling Units . | . . . . Scanalyzers . | . . . . Garrison Access . | . . . . Total Hacks 6 | . 3 . 3 Successful 5 | . 2 . 3 Failed 1 | . 1 . . Catastrophic . | . . . . Database Lockouts . | . . . . Manual . | . . . . Terminals 3 | . 3 . . Fabricators . | . . . . Repair Stations . | . . . . Recycling Units . | . . . . Scanalyzers . | . . . . Garrison Access . | . . . . Terminal Hacks 5 | . 2 . 3 Record 3 | . 2 . 1 Open Door 1 | . . . 1 Release Object 1 | . . . 1 Fabricator Hacks . | . . . . Repair Station Hacks . | . . . . Recycling Unit Hacks . | . . . . Scanalyzer . | . . . . Garrison Access Hacks . | . . . . Unauthorized Hacks . | . . . . Terminals . | . . . . Fabricators . | . . . . Repair Stations . | . . . . Recycling Units . | . . . . Scanalyzers . | . . . . Garrison Access . | . . . . Data Cores Recovered . | . . . . Used . | . . . . Hacking Detections . | . . . . Full Trace Events . | . . . . Feedback Events . | . . . . Feedback Blocked . | . . . . Robot Schematics Acquired . | . . . . Robots Built . | . . . . Authchips . | . . . . Time . | . . . . Total Robot Build Rating . | . . . . Part Schematics Acquired . | . . . . Parts Built . | . . . . Authchips . | . . . . Time . | . . . . Total Part Build Rating . | . . . . Parts Repaired . | . . . . Time . | . . . . Parts Recycled . | . . . . Recycled Matter . | . . . . Retrieved Matter . | . . . . Retrieved Components . | . . . . Parts Scanalyzed . | . . . . Part Schematics Acquired . | . . . . Parts Damaged . | . . . . Bothacking | -11 -10 -10 -10 ------------ Run | Yrd Mat Min Sub Used RIF Installer . | . . . . Robots Hacked . | . . . . Non-combat . | . . . . Combat . | . . . . Robot Hacks Applied . | . . . . Relay Couplers Released . | . . . . Fabnet Peak Effective % . | . . . . Robots Rewired . | . . . . Allies Hacked . | . . . . Hacks Repelled . | . . . . Allies | -11 -10 -10 -10 -------- Run | Yrd Mat Min Sub Total Allies . | . . . . Largest Group . | . . . . Highest-Rated Group . | . . . . Highest-Rated Ally . | . . . . Total Orders . | . . . . Ally Attacks . | . . . . Total Damage . | . . . . Kills . | . . . . Allies Corrupted . | . . . . Allies Melted . | . . . . Intel | -11 -10 -10 -10 ------- Run | Yrd Mat Min Sub Active Infowar (turns) 2135 | . . 78 2057 Sensors 2135 | . . 78 2057 Robot Analysis Total . | . . . . Derelict Logs Recovered 3 | . . 1 2 Drone Launches . | . . . . Drone Recoveries . | . . . . Exploration | -11 -10 -10 -10 ------------- Run | Yrd Mat Min Sub Turns Passed 2606 | 52 279 218 2057 Spaces Moved 1123 | 34 138 100 851 Core 339 | 16 . . 323 Treads 784 | 18 138 100 528 Legs . | . . . . Wheels . | . . . . Hover . | . . . . Flight . | . . . . Fastest Speed 50 | 50 160 160 50 Average Speed 153 | 131 160 160 151 Slowest Speed 200 | 160 160 160 200 Overloaded Moves . | . . . . Propulsion Burnouts . | . . . . Robots Hopped . | . . . . Potential Cave-ins . | . . . . Cave-ins Triggered . | . . . . Exploration Rate (%) 29 | 4 35 30 48 Regions Visited 3 Branch Regions 2 Pre-discovered Areas . | . . . . Known Exits Taken . | . . . . Unknown Exits Taken 3 | 1 1 1 . Scrap Searched 1 | . . . 1 Spaces Dug . | . . . . Terrain Destroyed 61 | . 61 . . Melee . | . . . . Projectile . | . . . . AOE 61 | . 61 . . Terrain Rammed . | . . . . Walls Destroyed . | . . . . Machines Disabled . | . . . . Actions | -11 -10 -10 -10 --------- Run | Yrd Mat Min Sub Total 1933 | 41 172 148 1572 Wait 719 | . 11 35 673 Move 1120 | 33 137 99 851 Hop . | . . . . Pick Up 12 | 4 . 3 5 Fast Attach . | . . . . Attach 9 | 4 . 1 4 Detach . | . . . . Swap 2 | . . . 2 Drop 2 | . . . 2 Fire 68 | . 24 10 34 Melee . | . . . . Ram . | . . . . Kick . | . . . . Crush . | . . . . Escape Stasis . | . . . . Rewire . | . . . . Trap . | . . . . Miscellaneous 1 | . . . 1 Route ------- -11/Scrapyard -10/Materials -10/Mines (discovered 2 exits: [*Mat] / *Sub) -10/Subcaves (discovered 1 exit: [*Mat]) History --------- Turn | Location | Event 25 | -11/Scrapyard | Discovered new exit (range 12) 53 | -11/Scrapyard | Entered Materials 280 | -10/Materials | Discovered new exit (range 14) 301 | -10/Materials | Build established: Mutant 332 | -10/Materials | Entered Mines 340 | -10/Mines | Discovered new exit (range 12) 452 | -10/Mines | Learned Materials stockpile data 466 | -10/Mines | Found a damaged Exp. Sensor Array with a note attached 471 | -10/Mines | Found Prototype Device 472 | -10/Mines | Identified Exp. Sensor Array 537 | -10/Mines | Discovered new exit (range 3) 550 | -10/Mines | Entered Subcaves 625 | -10/Subcaves | Learned 2 Materials zone layouts 1003 | -10/Subcaves | Released subatomizers from SUBCON Basin 2122 | -10/Subcaves | Core integrity fell below 50% 2128 | -10/Subcaves | Core integrity fell below 20% 2160 | -10/Subcaves | Lost 4 parts (1p1n2w) 2211 | -10/Subcaves | Shifting Twisted Machinery released Sub. Power Source 2225 | -10/Subcaves | Discovered new exit (range 11) 2228 | -10/Subcaves | Shifting Twisted Machinery released Mak. Light Armor Plating 2607 | -10/Subcaves | Destroyed by Shrapnel Trap Last Messages --------------- Sub. Power Source falls loose from the Twisted Machinery. EXIT=FOUND Mak. Light Armor Plating falls loose from the Twisted Machinery. Acquired Mak. Light Armor Plating. S-10 Pest destroyed. Acquired 10 matter. Acquired Lgt. Assault Rifle. Acquired Lgt. Ion Engine. Flight Unit fries itself beyond repair. Subatomizers dissect the Sub. Power Source. Acquired 10 matter. Subatomizers dissect the Sub. Power Source. T1-W9C(u) tweaks Twisted Machinery. T1-W9C(u) builds Twisted Machinery. T1-W9C(u) deconstructs Twisted Machinery. Triggered Shrapnel Trap. An expanding cloud of shrapnel blasts out in all directions. Map ----- +----------------------------------------------------+ | ###?# ### ## ###??????????????????????? | | ????##### ### #######??????????????????????? | | ???????## #####?## #??????????????????????? | | #?###??# ##??## #??????????????????????? | | ### ??### #???""" ##?????????????????????? | | ## ????## #???#"" "#?????????????????????? | | ## ?????##"" "#??##"" #?????????????????????? | | ????## "" "####""" #?????????????????????? | | ##### # ## ""##"""" #?????????????????????? | | "### #?????????????????????? | | # ""## """"" ##?????????????????????? | | # # # ### """""""##??????????????????????? | | ## #####"##" " "##???????????????????????? | | ?## # #????##### ####????????????????????????? | | ??## ###????????# #??????????????????????? ???? | | ???# #??????????# "##????????????????????? #???? | | #??## #?????????## #???????????####????#" ????? | | ##### ##????????## ##???????????# ##### ????? | | ## #?????????#" ##??????????# ?????? | | ##% ##?????????#""^ ###???????? ????#? | | ?### #??????????##^^ ^##??????## # ???? #? | | ???###???????????#### ##?????# ## #### #? | | ????????????????????### #?????# ## ??? | | ??????????????????????## ####### ## ???? | | ???????????????????????# ## # ?????? | | ???????????????????????# @ ## ##?????? | | ???????????????????????# # ## # # ##????? | | ???????????????????????# ^####### #????? | | ???????????????????????# #?????# ##????? | | ??????????????????????# ##?????# #?????# | | ??????????????????????# ###??????## ##????## | | ??????????????????????####?????????## ## ##????# | | ????????????????????????????????????##### ###### | | ??????????????????????????????????????### # | | ?????????????????????????????????????## " | | ???????????????????????????????? """ | | ?????????????????????????????? # """#### | | ????????????????????????????? #############??# | | ?????????????????????????????? ?????????????????# | | ?????????????????????????????????????????????????? | | ?????????????????????????????????????????????????? | | ?????????????????????????????????????????????????? | | ?????????????????????????????????????????????????? | | ?????????????????????????????????????????????????? | | ?????????????????????????????????????????????????? | | ?????????????????????????????????????????????????? | | ?????????????????????????????????????????????????? | | ?????????????????????????????????????????????????? | | ?????????????????????????????????????????????????? | | ?????????????????????????????????????????????????? | +----------------------------------------------------+ Best States ------------- Heat Dissipation 25 Energy Generation 15 Energy Capacity 250 Matter Stores 300 Matter Capacity 300 Sight Range 16 Robot Scan Range 20 Terrain Scan Density 10 Armor Coverage 100 Evasion (%) 50 Recoil Reduction 2 Item Schematics ----------------- None Robot Schematics ------------------ None Fabricated ------------ Nothing Repaired ---------- Nothing Alien Tech Used ----------------- None Achievements -------------- None Challenges ------------ None Game ------ Seed BiometalAmuletTerrabomb Manual? 0 Play Time 00:11:55 Cumulative 46.8 hours Start 2025.07.12 @ 10:21:13 End 2025.07.12 @ 14:35:39 Sessions 1 Manual Loads 0 Difficulty Rogue Special Mode None Game No. 217 Rogue 217 Adventurer 0 Explorer 0 Win Type - Total 0 Types 0/0/0/0/0/0/0/0/0/0 Lore% 32 Gallery% 26 Achievement% 23 Wizard Run 0 Options --------- Layout 2 ASCII 0 Keyboard 0 Movement Mouse Keybinds 0 Fullscreen 1 Font 24/Smallcaps Map View 50x44 Zoom Use 0% Tactical HUD 0 Map Filters NONE Filters NONE Steam 1 RUN: 7176cf00-2602-4591-95ad-59a60a725d0c